[Event "Live Chess"]
[Site "Chess.com"]
[Date "2011.02.01"]
[Round "-"]
[White "hipposcottimus"]
[Black "Theflashpoint"]
[Result "1-0"]
[CurrentPosition "1R6/p7/2Q5/k1p5/8/8/PPPNK2P/R7 b - -"]
[Timezone "UTC"]
[ECO "C50"]
[ECOUrl "https://www.chess.com/openings/Italian-Game-Rousseau-Gambit"]
[UTCDate "2011.02.01"]
[UTCTime "03:39:29"]
[WhiteElo "1661"]
[BlackElo "1478"]
[TimeControl "60"]
[Termination "hipposcottimus won on time"]
[StartTime "03:39:29"]
[EndDate "2011.02.01"]
[EndTime "03:41:37"]
[Link "https://www.chess.com/game/live/93512808"]

1. e4 {[%clk 0:01:00]} 1... e5 {[%clk 0:01:00]} 2. Nf3 {[%clk 0:00:59.5]} 2... Nc6 {[%clk 0:00:59.3]} 3. Bc4 {[%clk 0:00:58.6]} 3... f5 {[%clk 0:00:58.8]} 4. exf5 {[%clk 0:00:57.5]} 4... e4 {[%clk 0:00:57.1]} 5. Ng1 {[%clk 0:00:51.6]} 5... Nf6 {[%clk 0:00:56.4]} 6. d3 {[%clk 0:00:50.5]} 6... d5 {[%clk 0:00:55.6]} 7. Bb5 {[%clk 0:00:48.4]} 7... Bxf5 {[%clk 0:00:54.2]} 8. Bxc6+ {[%clk 0:00:47.8]} 8... bxc6 {[%clk 0:00:53]} 9. Bg5 {[%clk 0:00:44.9]} 9... Bd6 {[%clk 0:00:51.4]} 10. f3 {[%clk 0:00:44.6]} 10... O-O {[%clk 0:00:49.8]} 11. fxe4 {[%clk 0:00:43.8]} 11... dxe4 {[%clk 0:00:48.7]} 12. dxe4 {[%clk 0:00:43.5]} 12... Bxe4 {[%clk 0:00:46.5]} 13. Nf3 {[%clk 0:00:41.7]} 13... h6 {[%clk 0:00:43.4]} 14. Bh4 {[%clk 0:00:39.4]} 14... g5 {[%clk 0:00:40.8]} 15. Nxg5 {[%clk 0:00:37.8]} 15... hxg5 {[%clk 0:00:38.5]} 16. Bxg5 {[%clk 0:00:37.5]} 16... Bxg2 {[%clk 0:00:37.3]} 17. Rg1 {[%clk 0:00:34.8]} 17... Bh3 {[%clk 0:00:31.9]} 18. Bxf6+ {[%clk 0:00:32.9]} 18... Kf7 {[%clk 0:00:28.6]} 19. Bxd8 {[%clk 0:00:28.2]} 19... Raxd8 {[%clk 0:00:26.5]} 20. Qh5+ {[%clk 0:00:27.8]} 20... Ke7 {[%clk 0:00:24.8]} 21. Rg7+ {[%clk 0:00:26.7]} 21... Rf7 {[%clk 0:00:20.3]} 22. Rxf7+ {[%clk 0:00:24.9]} 22... Ke6 {[%clk 0:00:17.8]} 23. Qg6+ {[%clk 0:00:20.8]} 23... Kd5 {[%clk 0:00:16.3]} 24. Qh5+ {[%clk 0:00:16.5]} 24... Kc4 {[%clk 0:00:13.4]} 25. Qxh3 {[%clk 0:00:15.6]} 25... Bg3+ {[%clk 0:00:11.1]} 26. Qxg3 {[%clk 0:00:13]} 26... Rd1+ {[%clk 0:00:09.6]} 27. Ke2 {[%clk 0:00:12]} 27... Rd2+ {[%clk 0:00:07.8]} 28. Nxd2+ {[%clk 0:00:11.1]} 28... Kb5 {[%clk 0:00:06.5]} 29. Qb3+ {[%clk 0:00:10.8]} 29... Ka6 {[%clk 0:00:05.4]} 30. Rf8 {[%clk 0:00:10.3]} 30... c5 {[%clk 0:00:03.6]} 31. Rb8 {[%clk 0:00:10]} 31... c6 {[%clk 0:00:01.8]} 32. Qb7+ {[%clk 0:00:08.6]} 32... Ka5 {[%clk 0:00:00.4]} 33. Qxc6 {[%clk 0:00:08.3]} 1-0

[Event "Live Chess"]
[Site "Chess.com"]
[Date "2011.02.01"]
[Round "-"]
[White "Theflashpoint"]
[Black "hipposcottimus"]
[Result "1-0"]
[CurrentPosition "k7/P7/1B6/1PP3pp/2P5/5PPP/8/6K1 b - -"]
[Timezone "UTC"]
[ECO "C58"]
[ECOUrl "https://www.chess.com/openings/Italian-Game-Knight-Attack-Polerio-Kieseritzky-Variation"]
[UTCDate "2011.02.01"]
[UTCTime "03:36:48"]
[WhiteElo "1482"]
[BlackElo "1657"]
[TimeControl "60"]
[Termination "Theflashpoint won on time"]
[StartTime "03:36:48"]
[EndDate "2011.02.01"]
[EndTime "03:39:08"]
[Link "https://www.chess.com/game/live/93512123"]

1. e4 {[%clk 0:01:00]} 1... e5 {[%clk 0:01:00]} 2. Nf3 {[%clk 0:00:59.1]} 2... Nc6 {[%clk 0:00:59.5]} 3. Bc4 {[%clk 0:00:58.4]} 3... Nf6 {[%clk 0:00:58.1]} 4. Ng5 {[%clk 0:00:57.4]} 4... d5 {[%clk 0:00:56.9]} 5. exd5 {[%clk 0:00:56.8]} 5... Na5 {[%clk 0:00:56.1]} 6. d3 {[%clk 0:00:55.6]} 6... Nxc4 {[%clk 0:00:54.9]} 7. dxc4 {[%clk 0:00:54.4]} 7... Nd7 {[%clk 0:00:52.4]} 8. O-O {[%clk 0:00:52.2]} 8... Be7 {[%clk 0:00:51.7]} 9. Qg4 {[%clk 0:00:49.6]} 9... f5 {[%clk 0:00:48.7]} 10. Qxf5 {[%clk 0:00:47.8]} 10... Nf6 {[%clk 0:00:46.8]} 11. Ne6 {[%clk 0:00:45.8]} 11... Qd6 {[%clk 0:00:44.2]} 12. Bg5 {[%clk 0:00:43.3]} 12... Bxe6 {[%clk 0:00:37.2]} 13. dxe6 {[%clk 0:00:41.3]} 13... O-O {[%clk 0:00:35.1]} 14. Qh3 {[%clk 0:00:36.4]} 14... Qd4 {[%clk 0:00:26.8]} 15. Nc3 {[%clk 0:00:33.3]} 15... c5 {[%clk 0:00:25.2]} 16. Rad1 {[%clk 0:00:30.4]} 16... Qg4 {[%clk 0:00:21.6]} 17. Qxg4 {[%clk 0:00:28.5]} 17... Nxg4 {[%clk 0:00:20.7]} 18. Bxe7 {[%clk 0:00:27.6]} 18... Rfe8 {[%clk 0:00:20.4]} 19. Bxc5 {[%clk 0:00:26.6]} 19... Rxe6 {[%clk 0:00:19.1]} 20. h3 {[%clk 0:00:25.6]} 20... Nf6 {[%clk 0:00:17.4]} 21. Rfe1 {[%clk 0:00:23.6]} 21... Rae8 {[%clk 0:00:17.2]} 22. Ne4 {[%clk 0:00:20.9]} 22... Nd7 {[%clk 0:00:12.9]} 23. Bb4 {[%clk 0:00:18.9]} 23... b6 {[%clk 0:00:12.3]} 24. Bc3 {[%clk 0:00:17.5]} 24... a5 {[%clk 0:00:11.4]} 25. Ng5 {[%clk 0:00:16.6]} 25... Nc5 {[%clk 0:00:11.1]} 26. Nxe6 {[%clk 0:00:15.3]} 26... Nxe6 {[%clk 0:00:10.7]} 27. Rxe5 {[%clk 0:00:13.7]} 27... Nc7 {[%clk 0:00:08.5]} 28. Rxe8+ {[%clk 0:00:12.4]} 28... Nxe8 {[%clk 0:00:08.3]} 29. Rd8 {[%clk 0:00:11.5]} 29... Kf7 {[%clk 0:00:08]} 30. Rxe8 {[%clk 0:00:09.3]} 30... Kxe8 {[%clk 0:00:06.7]} 31. Bd4 {[%clk 0:00:09.2]} 31... Kf7 {[%clk 0:00:06.4]} 32. Bxb6 {[%clk 0:00:09.1]} 32... Ke7 {[%clk 0:00:06.1]} 33. Bxa5 {[%clk 0:00:09]} 33... Kd7 {[%clk 0:00:05.5]} 34. Bb6 {[%clk 0:00:08.9]} 34... Kc6 {[%clk 0:00:05.2]} 35. c5 {[%clk 0:00:08.8]} 35... Kb7 {[%clk 0:00:05]} 36. b3 {[%clk 0:00:07.9]} 36... Kc6 {[%clk 0:00:04.7]} 37. c4 {[%clk 0:00:07.8]} 37... Kd7 {[%clk 0:00:03.2]} 38. a4 {[%clk 0:00:07.7]} 38... g5 {[%clk 0:00:02.8]} 39. a5 {[%clk 0:00:07.6]} 39... h5 {[%clk 0:00:02.6]} 40. b4 {[%clk 0:00:06.9]} 40... Kc6 {[%clk 0:00:02.2]} 41. b5+ {[%clk 0:00:06.8]} 41... Kb7 {[%clk 0:00:01.9]} 42. a6+ {[%clk 0:00:05.8]} 42... Kc8 {[%clk 0:00:01.5]} 43. a7 {[%clk 0:00:05]} 43... Kb7 {[%clk 0:00:00.8]} 44. f3 {[%clk 0:00:03.9]} 44... Ka8 {[%clk 0:00:00.1]} 45. g3 {[%clk 0:00:02.9]} 1-0

[Event "Live Chess"]
[Site "Chess.com"]
[Date "2011.02.01"]
[Round "-"]
[White "Theflashpoint"]
[Black "hipposcottimus"]
[Result "1-0"]
[CurrentPosition "r1b3k1/p1p2rBp/q1p2P2/4p1Q1/4P3/7R/1p4PP/6RK b - -"]
[Timezone "UTC"]
[ECO "C25"]
[ECOUrl "https://www.chess.com/openings/Vienna-Game-Max-Lange-Defense"]
[UTCDate "2011.02.01"]
[UTCTime "03:33:11"]
[WhiteElo "1473"]
[BlackElo "1664"]
[TimeControl "60"]
[Termination "Theflashpoint won on time"]
[StartTime "03:33:11"]
[EndDate "2011.02.01"]
[EndTime "03:35:04"]
[Link "https://www.chess.com/game/live/93511399"]

1. e4 {[%clk 0:01:00]} 1... e5 {[%clk 0:01:00]} 2. Nc3 {[%clk 0:00:59.3]} 2... Nc6 {[%clk 0:00:59.7]} 3. Bb5 {[%clk 0:00:58.4]} 3... Nf6 {[%clk 0:00:59.5]} 4. Bxc6 {[%clk 0:00:57.7]} 4... dxc6 {[%clk 0:00:59.2]} 5. d3 {[%clk 0:00:57.2]} 5... Bd6 {[%clk 0:00:58.7]} 6. f4 {[%clk 0:00:56.6]} 6... Bb4 {[%clk 0:00:58.3]} 7. f5 {[%clk 0:00:55.4]} 7... Qd4 {[%clk 0:00:54.4]} 8. Nf3 {[%clk 0:00:53.1]} 8... Bxc3+ {[%clk 0:00:50.4]} 9. bxc3 {[%clk 0:00:52.1]} 9... Qd7 {[%clk 0:00:50.1]} 10. Nxe5 {[%clk 0:00:50.3]} 10... Qd6 {[%clk 0:00:48.5]} 11. Bf4 {[%clk 0:00:48.7]} 11... O-O {[%clk 0:00:47.8]} 12. O-O {[%clk 0:00:47]} 12... Nd7 {[%clk 0:00:44.5]} 13. Qh5 {[%clk 0:00:41.9]} 13... Nxe5 {[%clk 0:00:41]} 14. d4 {[%clk 0:00:39.5]} 14... f6 {[%clk 0:00:31]} 15. dxe5 {[%clk 0:00:37.6]} 15... fxe5 {[%clk 0:00:30.6]} 16. Bh6 {[%clk 0:00:34.5]} 16... Rf6 {[%clk 0:00:29.1]} 17. Bg5 {[%clk 0:00:31.6]} 17... Rf7 {[%clk 0:00:25.7]} 18. Qg4 {[%clk 0:00:30.2]} 18... Qc5+ {[%clk 0:00:22]} 19. Kh1 {[%clk 0:00:28.3]} 19... Qxc3 {[%clk 0:00:21.2]} 20. Rf3 {[%clk 0:00:27.2]} 20... Qxc2 {[%clk 0:00:20.2]} 21. Raf1 {[%clk 0:00:26.7]} 21... Qxa2 {[%clk 0:00:16.5]} 22. Rh3 {[%clk 0:00:25.4]} 22... Qa6 {[%clk 0:00:13.4]} 23. Rg1 {[%clk 0:00:20.1]} 23... b5 {[%clk 0:00:11.6]} 24. Bh6 {[%clk 0:00:17.5]} 24... b4 {[%clk 0:00:10.2]} 25. Qg5 {[%clk 0:00:16.2]} 25... b3 {[%clk 0:00:09]} 26. f6 {[%clk 0:00:15.2]} 26... b2 {[%clk 0:00:08]} 27. Bxg7 {[%clk 0:00:13.2]} 1-0

[Event "Live Chess"]
[Site "Chess.com"]
[Date "2011.02.01"]
[Round "-"]
[White "hipposcottimus"]
[Black "Theflashpoint"]
[Result "0-1"]
[CurrentPosition "5rk1/p1p4p/2p3p1/1rKb2B1/3p4/3P4/PP6/R4R2 w - -"]
[Timezone "UTC"]
[ECO "C50"]
[ECOUrl "https://www.chess.com/openings/Italian-Game-Rousseau-Gambit"]
[UTCDate "2011.02.01"]
[UTCTime "03:30:56"]
[WhiteElo "1675"]
[BlackElo "1460"]
[TimeControl "60"]
[Termination "Theflashpoint won on time"]
[StartTime "03:30:56"]
[EndDate "2011.02.01"]
[EndTime "03:32:50"]
[Link "https://www.chess.com/game/live/93510888"]

1. e4 {[%clk 0:01:00]} 1... e5 {[%clk 0:01:00]} 2. Nf3 {[%clk 0:00:59.6]} 2... Nc6 {[%clk 0:00:59.4]} 3. Bc4 {[%clk 0:00:59.3]} 3... f5 {[%clk 0:00:58.8]} 4. d4 {[%clk 0:00:54]} 4... exd4 {[%clk 0:00:56.1]} 5. Nxd4 {[%clk 0:00:52.9]} 5... fxe4 {[%clk 0:00:55.2]} 6. Nxc6 {[%clk 0:00:51]} 6... bxc6 {[%clk 0:00:54.2]} 7. Nc3 {[%clk 0:00:39.8]} 7... Nf6 {[%clk 0:00:52.5]} 8. O-O {[%clk 0:00:37]} 8... d5 {[%clk 0:00:51.5]} 9. Be2 {[%clk 0:00:33.8]} 9... Bd6 {[%clk 0:00:50.5]} 10. Bh5+ {[%clk 0:00:33.4]} 10... g6 {[%clk 0:00:48.9]} 11. Be2 {[%clk 0:00:30]} 11... O-O {[%clk 0:00:48]} 12. f3 {[%clk 0:00:29.8]} 12... Qe7 {[%clk 0:00:44]} 13. fxe4 {[%clk 0:00:28.6]} 13... Nxe4 {[%clk 0:00:42.4]} 14. Bf3 {[%clk 0:00:27.1]} 14... Bf5 {[%clk 0:00:39.7]} 15. Nxe4 {[%clk 0:00:21.3]} 15... Bxe4 {[%clk 0:00:38.4]} 16. Bg4 {[%clk 0:00:19.6]} 16... Qh4 {[%clk 0:00:35.6]} 17. Bf3 {[%clk 0:00:16.5]} 17... Qxh2+ {[%clk 0:00:33.2]} 18. Kf2 {[%clk 0:00:16.2]} 18... Bc5+ {[%clk 0:00:31.5]} 19. Ke2 {[%clk 0:00:14.8]} 19... Bxf3+ {[%clk 0:00:29.8]} 20. Kd2 {[%clk 0:00:14.5]} 20... Qxg2+ {[%clk 0:00:28.3]} 21. Kc3 {[%clk 0:00:10.9]} 21... Qg3 {[%clk 0:00:25]} 22. Qd3 {[%clk 0:00:09.4]} 22... d4+ {[%clk 0:00:22.3]} 23. Kc4 {[%clk 0:00:07.5]} 23... Bd5+ {[%clk 0:00:21.4]} 24. Kxc5 {[%clk 0:00:04.3]} 24... Qxd3 {[%clk 0:00:20.2]} 25. cxd3 {[%clk 0:00:02]} 25... Rab8 {[%clk 0:00:20.1]} 26. Bg5 {[%clk 0:00:01.5]} 26... Rb5+ {[%clk 0:00:18.4]} 0-1

[Event "Live Chess"]
[Site "Chess.com"]
[Date "2011.02.01"]
[Round "-"]
[White "Theflashpoint"]
[Black "hipposcottimus"]
[Result "0-1"]
[CurrentPosition "6k1/ppp2p1p/6p1/2pq4/8/3P4/PPP2QR1/7K w - -"]
[Timezone "UTC"]
[ECO "C25"]
[ECOUrl "https://www.chess.com/openings/Vienna-Game-Max-Lange-Defense"]
[UTCDate "2011.02.01"]
[UTCTime "03:28:24"]
[WhiteElo "1446"]
[BlackElo "1687"]
[TimeControl "60"]
[Termination "hipposcottimus won on time"]
[StartTime "03:28:24"]
[EndDate "2011.02.01"]
[EndTime "03:30:31"]
[Link "https://www.chess.com/game/live/93510284"]

1. e4 {[%clk 0:01:00]} 1... e5 {[%clk 0:01:00]} 2. Nc3 {[%clk 0:00:59.3]} 2... Nc6 {[%clk 0:00:59.6]} 3. Bb5 {[%clk 0:00:58.4]} 3... Nf6 {[%clk 0:00:58.9]} 4. Bxc6 {[%clk 0:00:57.7]} 4... dxc6 {[%clk 0:00:58.6]} 5. d3 {[%clk 0:00:57.1]} 5... Bd6 {[%clk 0:00:57.5]} 6. f4 {[%clk 0:00:56.4]} 6... Bg4 {[%clk 0:00:56.8]} 7. Nf3 {[%clk 0:00:53.1]} 7... exf4 {[%clk 0:00:56.4]} 8. h3 {[%clk 0:00:51.7]} 8... Bh5 {[%clk 0:00:55.4]} 9. O-O {[%clk 0:00:50.4]} 9... O-O {[%clk 0:00:53.8]} 10. Qe2 {[%clk 0:00:48.4]} 10... c5 {[%clk 0:00:50.6]} 11. e5 {[%clk 0:00:43.2]} 11... Re8 {[%clk 0:00:48.3]} 12. Bxf4 {[%clk 0:00:42.2]} 12... Bxe5 {[%clk 0:00:42.8]} 13. Bxe5 {[%clk 0:00:39.4]} 13... Nd7 {[%clk 0:00:40.9]} 14. g4 {[%clk 0:00:27.5]} 14... Bxg4 {[%clk 0:00:34.3]} 15. hxg4 {[%clk 0:00:26.2]} 15... Nxe5 {[%clk 0:00:31.9]} 16. Nxe5 {[%clk 0:00:24.2]} 16... Qd6 {[%clk 0:00:31.6]} 17. Qh2 {[%clk 0:00:21.8]} 17... Rxe5 {[%clk 0:00:27]} 18. Rae1 {[%clk 0:00:17.9]} 18... Qd4+ {[%clk 0:00:26.5]} 19. Kh1 {[%clk 0:00:15.1]} 19... Rxe1 {[%clk 0:00:23.5]} 20. Rxe1 {[%clk 0:00:14]} 20... Qxg4 {[%clk 0:00:23.2]} 21. Rg1 {[%clk 0:00:11.8]} 21... Qf3+ {[%clk 0:00:22.4]} 22. Qg2 {[%clk 0:00:11]} 22... Qh5+ {[%clk 0:00:21.4]} 23. Qh2 {[%clk 0:00:10]} 23... Qd5+ {[%clk 0:00:19.1]} 24. Rg2 {[%clk 0:00:09.9]} 24... Qf5 {[%clk 0:00:15.9]} 25. Nd5 {[%clk 0:00:09.8]} 25... Re8 {[%clk 0:00:14.6]} 26. Qg3 {[%clk 0:00:09.7]} 26... Qh5+ {[%clk 0:00:12]} 27. Rh2 {[%clk 0:00:07.7]} 27... Re1+ {[%clk 0:00:11.4]} 28. Qxe1 {[%clk 0:00:06.5]} 28... Qf3+ {[%clk 0:00:08.8]} 29. Rg2 {[%clk 0:00:04.5]} 29... g6 {[%clk 0:00:08.2]} 30. Qf2 {[%clk 0:00:03]} 30... Qxd5 {[%clk 0:00:05.2]} 0-1

[Event "Live Chess"]
[Site "Chess.com"]
[Date "2011.02.01"]
[Round "-"]
[White "hipposcottimus"]
[Black "polygonmon"]
[Result "1-0"]
[CurrentPosition "8/7p/8/8/2n3KP/8/2k5/8 b - h3"]
[Timezone "UTC"]
[ECO "B20"]
[ECOUrl "https://www.chess.com/openings/Sicilian-Defense"]
[UTCDate "2011.02.01"]
[UTCTime "03:25:13"]
[WhiteElo "1684"]
[BlackElo "1694"]
[TimeControl "60"]
[Termination "hipposcottimus won on time"]
[StartTime "03:25:13"]
[EndDate "2011.02.01"]
[EndTime "03:27:37"]
[Link "https://www.chess.com/game/live/93509675"]

1. e4 {[%clk 0:01:00]} 1... c5 {[%clk 0:01:00]} 2. Bb5 {[%clk 0:00:58]} 2... Nc6 {[%clk 0:00:58.8]} 3. Bxc6 {[%clk 0:00:57.4]} 3... dxc6 {[%clk 0:00:57.6]} 4. c4 {[%clk 0:00:57.2]} 4... e6 {[%clk 0:00:56.2]} 5. d3 {[%clk 0:00:57]} 5... Nf6 {[%clk 0:00:54.7]} 6. Nc3 {[%clk 0:00:56.7]} 6... Be7 {[%clk 0:00:54]} 7. f4 {[%clk 0:00:56.2]} 7... O-O {[%clk 0:00:51.1]} 8. Nf3 {[%clk 0:00:55.8]} 8... Bd6 {[%clk 0:00:49.5]} 9. O-O {[%clk 0:00:55.3]} 9... Nd7 {[%clk 0:00:47.4]} 10. e5 {[%clk 0:00:54.3]} 10... Be7 {[%clk 0:00:46.4]} 11. d4 {[%clk 0:00:53.3]} 11... b6 {[%clk 0:00:45.3]} 12. b4 {[%clk 0:00:50.6]} 12... cxb4 {[%clk 0:00:44.1]} 13. Ne2 {[%clk 0:00:49.4]} 13... c5 {[%clk 0:00:43.3]} 14. a3 {[%clk 0:00:47.7]} 14... cxd4 {[%clk 0:00:42.5]} 15. Nexd4 {[%clk 0:00:46.5]} 15... b3 {[%clk 0:00:41.9]} 16. Qxb3 {[%clk 0:00:44.9]} 16... Bb7 {[%clk 0:00:41.4]} 17. Qe3 {[%clk 0:00:44.2]} 17... Bc5 {[%clk 0:00:39.7]} 18. Qd3 {[%clk 0:00:42.5]} 18... f6 {[%clk 0:00:37.1]} 19. Kh1 {[%clk 0:00:38.6]} 19... fxe5 {[%clk 0:00:34.6]} 20. Nxe6 {[%clk 0:00:37.4]} 20... Qf6 {[%clk 0:00:29.3]} 21. Nxf8 {[%clk 0:00:35.6]} 21... Nxf8 {[%clk 0:00:28.7]} 22. fxe5 {[%clk 0:00:34.2]} 22... Qg6 {[%clk 0:00:22.7]} 23. Bg5 {[%clk 0:00:33.6]} 23... Qxd3 {[%clk 0:00:21.6]} 24. Rad1 {[%clk 0:00:28.7]} 24... Qe3 {[%clk 0:00:19.6]} 25. Rde1 {[%clk 0:00:27.8]} 25... Qxe1 {[%clk 0:00:18.6]} 26. e6 {[%clk 0:00:27.4]} 26... Nxe6 {[%clk 0:00:17.8]} 27. Rxe1 {[%clk 0:00:26]} 27... Rd8 {[%clk 0:00:16.1]} 28. Ng1 {[%clk 0:00:19.7]} 28... Re8 {[%clk 0:00:15.2]} 29. Be3 {[%clk 0:00:17]} 29... Bxe3 {[%clk 0:00:14.2]} 30. Rxe3 {[%clk 0:00:16.7]} 30... Nd4 {[%clk 0:00:12.2]} 31. Rxe8+ {[%clk 0:00:15.6]} 31... Kf7 {[%clk 0:00:11.7]} 32. Re1 {[%clk 0:00:14.1]} 32... Bxg2+ {[%clk 0:00:10.6]} 33. Kxg2 {[%clk 0:00:12.3]} 33... Nc2 {[%clk 0:00:10.1]} 34. Rc1 {[%clk 0:00:10.5]} 34... Nxa3 {[%clk 0:00:09.3]} 35. Nf3 {[%clk 0:00:10.2]} 35... b5 {[%clk 0:00:08.2]} 36. Rf1 {[%clk 0:00:09.9]} 36... bxc4 {[%clk 0:00:07.6]} 37. Ne5+ {[%clk 0:00:09.3]} 37... Ke6 {[%clk 0:00:06.7]} 38. Nxc4 {[%clk 0:00:09.1]} 38... Nxc4 {[%clk 0:00:05.7]} 39. Re1+ {[%clk 0:00:08.8]} 39... Kd5 {[%clk 0:00:05.2]} 40. Rc1 {[%clk 0:00:08.4]} 40... Kc5 {[%clk 0:00:04.9]} 41. Re1 {[%clk 0:00:07.8]} 41... a5 {[%clk 0:00:04.4]} 42. Re7 {[%clk 0:00:07.4]} 42... a4 {[%clk 0:00:03.5]} 43. Ra7 {[%clk 0:00:07]} 43... a3 {[%clk 0:00:03.1]} 44. Rxg7 {[%clk 0:00:06.3]} 44... Kd4 {[%clk 0:00:02.7]} 45. Ra7 {[%clk 0:00:05.9]} 45... Kc3 {[%clk 0:00:02.4]} 46. Ra4 {[%clk 0:00:04.7]} 46... Kb2 {[%clk 0:00:02]} 47. Ra5 {[%clk 0:00:03.9]} 47... a2 {[%clk 0:00:01.6]} 48. Rxa2+ {[%clk 0:00:02.8]} 48... Kxa2 {[%clk 0:00:00.8]} 49. Kg3 {[%clk 0:00:02.5]} 49... Kb3 {[%clk 0:00:00.5]} 50. Kg4 {[%clk 0:00:02.1]} 50... Kc2 {[%clk 0:00:00.2]} 51. h4 {[%clk 0:00:01.8]} 1-0

[Event "Live Chess"]
[Site "Chess.com"]
[Date "2011.02.01"]
[Round "-"]
[White "polygonmon"]
[Black "hipposcottimus"]
[Result "0-1"]
[CurrentPosition "2kr3r/ppp2ppp/2B5/5b2/4p1n1/2P5/P1PNQPPq/R1B2RK1 w - -"]
[Timezone "UTC"]
[ECO "C45"]
[ECOUrl "https://www.chess.com/openings/Scotch-Game"]
[UTCDate "2011.02.01"]
[UTCTime "03:23:59"]
[WhiteElo "1703"]
[BlackElo "1675"]
[TimeControl "60"]
[Termination "hipposcottimus won by checkmate"]
[StartTime "03:23:59"]
[EndDate "2011.02.01"]
[EndTime "03:25:00"]
[Link "https://www.chess.com/game/live/93509403"]

1. e4 {[%clk 0:01:00]} 1... e5 {[%clk 0:01:00]} 2. Nf3 {[%clk 0:00:58.1]} 2... Nc6 {[%clk 0:00:59.7]} 3. d4 {[%clk 0:00:57.2]} 3... d5 {[%clk 0:00:57.5]} 4. dxe5 {[%clk 0:00:53.9]} 4... dxe4 {[%clk 0:00:56]} 5. Nfd2 {[%clk 0:00:48.9]} 5... Bf5 {[%clk 0:00:53.4]} 6. Bb5 {[%clk 0:00:47.4]} 6... Qd5 {[%clk 0:00:46.8]} 7. Qe2 {[%clk 0:00:44.8]} 7... O-O-O {[%clk 0:00:42.4]} 8. Bc4 {[%clk 0:00:44.1]} 8... Qxe5 {[%clk 0:00:40.9]} 9. Nc3 {[%clk 0:00:39.5]} 9... Bb4 {[%clk 0:00:38.3]} 10. O-O {[%clk 0:00:37.2]} 10... Bxc3 {[%clk 0:00:37.3]} 11. bxc3 {[%clk 0:00:36.1]} 11... Nh6 {[%clk 0:00:33.6]} 12. Bb5 {[%clk 0:00:35.5]} 12... Ng4 {[%clk 0:00:32.8]} 13. Bxc6 {[%clk 0:00:34.1]} 13... Qxh2# {[%clk 0:00:31.7]} 0-1

[Event "Live Chess"]
[Site "Chess.com"]
[Date "2011.02.01"]
[Round "-"]
[White "kingkiller091"]
[Black "hipposcottimus"]
[Result "0-1"]
[CurrentPosition "7k/pp5p/2p5/2Rn4/2KP4/P3q3/2r4P/6R1 w - -"]
[Timezone "UTC"]
[ECO "D43"]
[ECOUrl "https://www.chess.com/openings/Semi-Slav-Defense"]
[UTCDate "2011.02.01"]
[UTCTime "03:22:14"]
[WhiteElo "1580"]
[BlackElo "1666"]
[TimeControl "60"]
[Termination "hipposcottimus won by checkmate"]
[StartTime "03:22:14"]
[EndDate "2011.02.01"]
[EndTime "03:23:43"]
[Link "https://www.chess.com/game/live/93509019"]

1. d4 {[%clk 0:01:00]} 1... d5 {[%clk 0:01:00]} 2. c4 {[%clk 0:00:59.3]} 2... c6 {[%clk 0:00:59.8]} 3. Nf3 {[%clk 0:00:58.8]} 3... e6 {[%clk 0:00:59.2]} 4. Nc3 {[%clk 0:00:58.6]} 4... Nf6 {[%clk 0:00:58.6]} 5. e3 {[%clk 0:00:57.9]} 5... Nbd7 {[%clk 0:00:58.2]} 6. Bd3 {[%clk 0:00:57.1]} 6... Bb4 {[%clk 0:00:57.7]} 7. a3 {[%clk 0:00:55.3]} 7... Bxc3+ {[%clk 0:00:56.4]} 8. bxc3 {[%clk 0:00:55]} 8... Kf8 {[%clk 0:00:55.7]} 9. O-O {[%clk 0:00:54.6]} 9... Ke7 {[%clk 0:00:55]} 10. e4 {[%clk 0:00:54.2]} 10... Re8 {[%clk 0:00:54.6]} 11. exd5 {[%clk 0:00:53.3]} 11... Kf8 {[%clk 0:00:54]} 12. dxe6 {[%clk 0:00:52.2]} 12... Rxe6 {[%clk 0:00:52.9]} 13. Be3 {[%clk 0:00:50.4]} 13... Nb6 {[%clk 0:00:48.6]} 14. Bg5 {[%clk 0:00:49.6]} 14... Qd7 {[%clk 0:00:46.1]} 15. Bf5 {[%clk 0:00:48.7]} 15... Qd6 {[%clk 0:00:44.5]} 16. Bxe6 {[%clk 0:00:48]} 16... Bxe6 {[%clk 0:00:43.7]} 17. Bxf6 {[%clk 0:00:47.3]} 17... Bxc4 {[%clk 0:00:43.4]} 18. Bxg7+ {[%clk 0:00:46.1]} 18... Kxg7 {[%clk 0:00:42.3]} 19. Re1 {[%clk 0:00:45.5]} 19... Kh8 {[%clk 0:00:42.1]} 20. Ng5 {[%clk 0:00:44.4]} 20... Rg8 {[%clk 0:00:41.4]} 21. Nxf7+ {[%clk 0:00:43.5]} 21... Bxf7 {[%clk 0:00:38.7]} 22. c4 {[%clk 0:00:41.6]} 22... Bxc4 {[%clk 0:00:37.1]} 23. Rc1 {[%clk 0:00:40]} 23... Bd5 {[%clk 0:00:35.3]} 24. Rc5 {[%clk 0:00:37.7]} 24... Bxg2 {[%clk 0:00:33.3]} 25. f3 {[%clk 0:00:33.5]} 25... Bxf3+ {[%clk 0:00:32]} 26. Kf2 {[%clk 0:00:32.7]} 26... Bxd1 {[%clk 0:00:31.1]} 27. Rxd1 {[%clk 0:00:32]} 27... Nd5 {[%clk 0:00:29.2]} 28. Rg1 {[%clk 0:00:28.9]} 28... Rf8+ {[%clk 0:00:28.7]} 29. Ke1 {[%clk 0:00:27.6]} 29... Qe6+ {[%clk 0:00:27.4]} 30. Kd2 {[%clk 0:00:26.5]} 30... Rf2+ {[%clk 0:00:26.3]} 31. Kd3 {[%clk 0:00:25.2]} 31... Qe3+ {[%clk 0:00:25.4]} 32. Kc4 {[%clk 0:00:24]} 32... Rc2# {[%clk 0:00:23.8]} 0-1

[Event "Live Chess"]
[Site "Chess.com"]
[Date "2011.02.01"]
[Round "-"]
[White "hipposcottimus"]
[Black "Shenandoah"]
[Result "0-1"]
[CurrentPosition "r1bq1rk1/1p3ppp/p3pn2/1Nbp4/2nN4/P5P1/1P2QPBP/R1B2RK1 w - -"]
[Timezone "UTC"]
[ECO "B12"]
[ECOUrl "https://www.chess.com/openings/Caro-Kann-Defense-Advance-Botvinnik-Carls-Defense-4.c4"]
[UTCDate "2011.02.01"]
[UTCTime "03:20:58"]
[WhiteElo "1659"]
[BlackElo "1857"]
[TimeControl "60"]
[Termination "Shenandoah won by resignation"]
[StartTime "03:20:58"]
[EndDate "2011.02.01"]
[EndTime "03:21:57"]
[Link "https://www.chess.com/game/live/93508749"]

1. e4 {[%clk 0:01:00]} 1... c6 {[%clk 0:01:00]} 2. d4 {[%clk 0:00:57.3]} 2... d5 {[%clk 0:00:59.9]} 3. e5 {[%clk 0:00:57]} 3... c5 {[%clk 0:00:59]} 4. c4 {[%clk 0:00:56.6]} 4... Nc6 {[%clk 0:00:58.6]} 5. Nf3 {[%clk 0:00:52.9]} 5... cxd4 {[%clk 0:00:57.7]} 6. Nxd4 {[%clk 0:00:50.5]} 6... Nxe5 {[%clk 0:00:56.4]} 7. Qe2 {[%clk 0:00:44]} 7... Nxc4 {[%clk 0:00:52.8]} 8. Nc3 {[%clk 0:00:41.2]} 8... e6 {[%clk 0:00:48.3]} 9. g3 {[%clk 0:00:38.4]} 9... Bb4 {[%clk 0:00:47]} 10. Bg2 {[%clk 0:00:37.7]} 10... Nf6 {[%clk 0:00:46]} 11. O-O {[%clk 0:00:36.3]} 11... O-O {[%clk 0:00:45]} 12. Ncb5 {[%clk 0:00:28.7]} 12... a6 {[%clk 0:00:42.5]} 13. a3 {[%clk 0:00:27.9]} 13... Bc5 {[%clk 0:00:40.3]} 0-1